bitfinex/quotes_SOLUSD_20220226
["timestamp","ask_amount","ask_price","bid_price","bid_amount"]
[1645878385021,4.42,90.552,90.442,4.42]
[1645878385221,23.4144,90.546,90.443,22.8424]
[1645878385424,23.4144,90.546,90.444,2.95042982]
[1645878385620,23.4144,90.546,90.445,4.42]
[1645878385821,16.5851,90.54,90.45,16.5845]
[1645878386020,16.5851,90.54,90.451,7.47373334]
[1645878386021,0.25,90.539,90.451,7.47373334]
[1645878386220,5.46238167,90.539,90.451,7.47373334]
[1645878386621,5.21238167,90.538,90.451,21.62659053]
[1645878386822,5.21238167,90.538,90.452,110.1]
[1645878387027,0.25,90.539,90.454,110.1]
[1645878387222,0.25,90.539,90.471,60.07997659]
[1645878387421,0.25,90.539,90.471,67.35997659]
[1645878387623,0.25,90.539,90.472,3.03831725]
[1645878388440,0.25,90.539,90.48,16.5801]
[1645878388640,0.25,90.539,90.481,3.04057432]
[1645878390440,0.25,90.539,90.472,2.31140632]
[1645878402757,16.5859,90.53,90.472,2.31140632]
[1645878404759,0.25,90.539,90.472,2.31140632]
[1645878411767,16.5856,90.53,90.472,2.31140632]
[1645878413470,0.25,90.529,90.472,2.31140632]
[1645878419179,16.5875,90.52,90.472,2.31140632]
[1645878419378,25.0075,90.52,90.444,2.86592849]
[1645878419581,25.0075,90.52,90.444,2.74736258]
[1645878419778,2.73996891,90.519,90.444,2.74736258]
[1645878420379,2.73996891,90.519,90.445,50.84355671]
[1645878420578,16.5916,90.5,90.446,2.74069501]
[1645878431304,16.5916,90.5,90.445,50.84355671]
[1645878431510,176.33,90.499,90.432,2.85580039]
[1645878431808,176.33,90.479,90.385,24.1611]
[1645878432007,110.1,90.473,90.353,4.423]
[1645878432205,110.1,90.461,90.341,46.7975]
[1645878432408,110.1,90.455,90.342,54.98666184]
[1645878432604,110.1,90.455,90.343,2.93670806]
[1645878432605,70.654,90.454,90.343,2.93670806]
[1645878432806,66.23,90.454,90.344,4.424]
[1645878433003,2.73996891,90.453,90.344,4.424]
[1645878433206,2.73996891,90.453,90.343,2.93670806]
[1645878433207,4.424,90.452,90.343,2.93670806]
[1645878433503,16.6051,90.45,90.35,16.6028]
[1645878433707,4.424,90.449,90.351,2.760629]
[1645878433906,110.1,90.445,90.351,2.760629]
[1645878434104,70.654,90.444,90.351,2.760629]
[1645878434305,22.7355,90.443,90.353,2.60705218]
[1645878434505,4.424,90.442,90.353,2.60705218]
[1645878435206,66.23,90.429,90.353,2.60705218]
[1645878435407,66.23,90.427,90.353,2.60705218]
[1645878436209,66.23,90.425,90.353,2.60705218]
[1645878436609,16.6061,90.42,90.342,51.97070318]
[1645878436816,5.56,90.429,90.342,51.97070318]
[1645878436817,1.87403168,90.418,90.342,51.97070318]
[1645878437018,4.425,90.417,90.301,49.86978098]
[1645878437215,66.23,90.416,90.301,47.176]
[1645878437408,176.33,90.414,90.301,47.176]
[1645878437607,176.33,90.409,90.301,47.176]
[1645878437808,1.54727019,90.408,90.301,47.176]
[1645878438010,1.54727019,90.408,90.338,58.27853372]
[1645878438209,176.33,90.399,90.338,58.27853372]
[1645878438410,1.86891022,90.398,90.338,58.27853372]
[1645878438609,4.426,90.397,90.338,58.27853372]
[1645878439309,11.366,90.397,90.338,58.27853372]
[1645878439511,176.33,90.389,90.338,58.27853372]
[1645878439709,176.33,90.387,90.338,58.27853372]
[1645878439910,1.63673828,90.386,90.338,58.27853372]
[1645878440211,1.63673828,90.386,90.301,47.176]
[1645878440409,2.72426702,90.385,90.28,113.0]
[1645878440609,4.426,90.384,90.28,113.0]
[1645878440808,110.1,90.369,90.272,48.3414]
[1645878441008,15.96,90.38,90.273,2.60803266]
[1645878441009,16.6176,90.36,90.273,2.60803266]
[1645878441209,23.8478,90.379,90.291,2.64736976]
[1645878441413,23.4562,90.382,90.31,16.6103]
[1645878441611,23.4562,90.382,90.311,2.89304956]
[1645878441810,23.4562,90.382,90.311,5.75597383]
[1645878442109,23.4562,90.382,90.292,61.33455776]
[1645878442110,16.6131,90.38,90.293,2.30407228]
[1645878442512,0.25,90.379,90.294,2.86292427]
[1645878443509,0.25,90.379,90.3,16.6136]
[1645878444212,16.6147,90.37,90.3,16.6136]
[1645878447115,0.25,90.379,90.3,16.6136]
[1645878447314,0.25,90.379,90.301,2.69967774]
[1645878447512,0.25,90.379,90.31,16.6116]
[1645878447712,0.25,90.379,90.311,3.03883992]
[1645878447913,24.9624,90.381,90.311,3.03883992]
[1645878449313,0.25,90.38,90.311,3.03883992]
[1645878449914,24.9624,90.381,90.311,3.03883992]
[1645878450117,70.656,90.409,90.321,57.22685871]
[1645878450316,94.5268,90.409,90.322,48.0359]
[1645878450516,1.48707262,90.408,90.322,48.0359]
[1645878450717,4.426,90.417,90.323,3.12123561]
[1645878451016,4.426,90.438,90.332,2.60791816]
[1645878451216,1.86237581,90.458,90.351,57.17679519]
[1645878451423,1.86237581,90.458,90.352,2.63937452]
[1645878451623,22.9997,90.459,90.352,5.50229879]
[1645878451820,22.9997,90.459,90.352,19.48937771]
[1645878452022,4.424,90.458,90.354,2.57405568]
[1645878452417,4.424,90.458,90.355,16.85000319]
[1645878452617,16.6004,90.45,90.36,32.5612]
[1645878452819,4.424,90.449,90.361,2.46187622]
[1645878453020,4.424,90.449,90.361,5.32480049]
[1645878453317,0.25,90.448,90.362,2.86292427]
[1645878453618,16.6004,90.45,90.37,16.6008]
[1645878453816,16.6004,90.45,90.371,24.1951]
[1645878454016,16.6004,90.45,90.372,2.71492115]
[1645878454818,22.9997,90.459,90.38,16.5988]
[1645878455018,22.9997,90.459,90.381,52.32817904]
[1645878455219,22.9997,90.459,90.382,2.98587086]
[1645878456221,22.9997,90.459,90.381,49.49850106]
[1645878456823,0.25,90.458,90.381,49.49850106]
[1645878457421,110.35,90.458,90.381,49.49850106]
[1645878457723,16.6004,90.45,90.381,49.49850106]
[1645878458323,1.43549839,90.449,90.381,49.49850106]
[1645878458523,177.76549839,90.449,90.381,49.49850106]
[1645878458722,110.1,90.439,90.381,49.49850106]
[1645878458923,1.5562162,90.438,90.381,49.49850106]
[1645878459723,176.33,90.444,90.381,49.49850106]
[1645878459924,1.65203263,90.443,90.381,49.49850106]
[1645878460525,110.1,90.429,90.371,24.1951]
[1645878460724,55.3509,90.45,90.32,55.3497]
[1645878460725,1.59083075,90.428,90.33,16.6064]
[1645878460923,1.7182555,90.435,90.33,16.6064]
[1645878461525,1.7182555,90.435,90.354,50.09832107]
[1645878461928,4.425,90.434,90.354,50.09832107]
[1645878462126,1.80188535,90.418,90.354,50.09832107]
[1645878462726,4.425,90.417,90.354,50.09832107]
[1645878462925,1.80188535,90.418,90.354,50.09832107]
[1645878463526,16.6105,90.4,90.354,50.09832107]
[1645878465027,16.6076,90.41,90.354,50.09832107]
[1645878466434,66.23,90.409,90.354,50.09832107]
[1645878467932,16.6095,90.4,90.354,50.09832107]
[1645878470136,16.6073,90.42,90.354,50.09832107]
[1645878470335,66.23,90.419,90.354,50.09832107]
[1645878471452,16.6076,90.41,90.354,50.09832107]
[1645878471851,1.65907757,90.408,90.354,50.09832107]
[1645878472052,66.23,90.409,90.354,50.09832107]
[1645878472854,16.6105,90.4,90.354,50.09832107]
[1645878477965,16.6076,90.41,90.354,50.09832107]
[1645878478165,4.425,90.429,90.354,50.09832107]
[1645878478565,4.425,90.438,90.354,50.09832107]
[1645878478965,70.655,90.438,90.355,23.4513]
[1645878479166,66.23,90.436,90.355,23.4513]
[1645878479366,4.425,90.435,90.355,23.4513]
[1645878479665,16.604,90.43,90.355,23.4513]
[1645878480466,16.604,90.43,90.356,2.87775072]
[1645878481771,22.6525,90.439,90.36,16.6023]
[1645878481972,22.6525,90.439,90.361,2.74853214]
[1645878482369,23.3693,90.449,90.361,2.74853214]
[1645878482969,4.424,90.467,90.361,2.74853214]
[1645878483169,4.424,90.474,90.37,16.6007]
[1645878483372,4.423,90.483,90.38,15.96]
[1645878483571,4.423,90.483,90.382,49.8555724]
[1645878483769,4.423,90.5,90.382,49.8555724]
[1645878483970,4.423,90.5,90.383,24.8659]
[1645878484169,24.511,90.501,90.384,2.53604755]
[1645878484371,24.511,90.501,90.384,16.85000319]
[1645878484570,16.5947,90.48,90.4,16.5935]
[1645878484772,16.5947,90.48,90.401,2.84423924]
[1645878484973,16.5947,90.48,90.4,16.5935]
[1645878485170,16.5947,90.48,90.401,24.3888]
[1645878485573,16.5947,90.48,90.402,2.50054398]
[1645878487476,1.83867261,90.479,90.401,24.3888]
[1645878487678,16.5985,90.46,90.401,24.3888]
[1645878487878,23.9185,90.46,90.401,24.3888]
[1645878488475,23.9185,90.46,90.385,24.4878]
[1645878488880,1.39735412,90.459,90.385,24.4878]
[1645878489077,16.602,90.45,90.385,24.4878]
[1645878489304,66.23,90.446,90.34,55.3374]
[1645878489478,66.23,90.446,90.236,187.3]
[1645878489479,110.1,90.443,90.341,48.4135]
[1645878489681,110.1,90.433,90.341,48.4135]
[1645878489879,1.5094967,90.432,90.341,48.4135]
[1645878490079,110.1,90.429,90.341,48.4135]
[1645878490484,111.51963571,90.421,90.341,48.4135]
[1645878490678,2.72435718,90.428,90.341,48.4135]
[1645878490679,4.425,90.427,90.342,55.5220793]
[1645878490881,2.72435718,90.42,90.342,55.5220793]
[1645878491081,4.425,90.419,90.342,55.5220793]
[1645878491478,16.6092,90.41,90.342,55.5220793]
[1645878491679,6.2726162,90.409,90.342,55.5220793]
[1645878492580,16.6105,90.4,90.342,55.5220793]
[1645878494180,4.426,90.428,90.342,55.5220793]
[1645878494380,4.425,90.429,90.342,55.5220793]
[1645878495082,66.23,90.426,90.342,55.5220793]
[1645878495283,4.425,90.425,90.342,55.5220793]
[1645878495585,16.6077,90.41,90.342,55.5220793]
[1645878498389,4.425,90.436,90.343,5.18107675]
[1645878498599,4.425,90.448,90.343,5.18107675]
[1645878498790,66.23,90.449,90.344,5.23162352]
[1645878498985,4.425,90.448,90.345,110.1]
[1645878499184,4.425,90.459,90.346,2.36911468]
[1645878499388,11.55596918,90.488,90.346,2.36911468]
[1645878499389,66.23,90.47,90.36,15.96]
[1645878499586,16.6015,90.45,90.362,2.88149356]
[1645878500187,16.6015,90.45,90.362,5.74441783]
[1645878500694,0.25,90.449,90.362,5.74441783]
[1645878501389,0.25,90.449,90.363,2.88415638]
[1645878501586,0.25,90.449,90.37,16.6005]
[1645878501790,0.25,90.449,90.371,55.75620612]
[1645878501989,0.25,90.449,90.372,2.71104502]
[1645878503492,16.6015,90.45,90.372,2.71104502]
[1645878504718,0.25,90.449,90.372,2.71104502]
[1645878506020,16.6029,90.44,90.372,2.71104502]
[1645878506219,16.6029,90.44,90.371,55.75620612]
[1645878507720,16.6062,90.42,90.371,55.75620612]
[1645878508424,16.6062,90.42,90.361,23.5009]
[1645878509423,16.6062,90.42,90.362,52.41515922]
[1645878515730,22.5969,90.437,90.362,52.41515922]
[1645878517629,16.6041,90.43,90.362,52.41515922]
[1645878519529,16.6041,90.43,90.363,2.40937689]
[1645878520131,0.25,90.429,90.363,2.40937689]
[1645878524536,0.25,90.429,90.362,52.41515922]
[1645878525439,0.25,90.429,90.37,16.6007]
[1645878525639,0.25,90.429,90.371,2.77746792]
[1645878525840,0.25,90.429,90.372,23.7351]
[1645878526039,0.25,90.429,90.373,2.89532685]
[1645878526442,0.25,90.429,90.372,23.7351]
[1645878528743,0.25,90.429,90.373,3.10094725]
[1645878528943,0.25,90.429,90.373,5.96387152]
[1645878529148,0.25,90.429,90.373,3.10094725]
[1645878531752,0.25,90.429,90.372,23.7351]
[1645878542280,67.95579224,90.429,90.362,52.41515922]
[1645878542482,1.39806458,90.428,90.362,52.41515922]
[1645878542680,4.425,90.427,90.344,23.3045]
[1645878542879,7.15760412,90.427,90.344,23.3045]
[1645878543080,66.23,90.422,90.344,23.3045]
[1645878543280,16.6104,90.4,90.344,23.3045]
[1645878543484,22.5004,90.4,90.344,23.3045]
[1645878543681,22.5004,90.4,90.354,46.84893218]
[1645878545284,16.6104,90.4,90.354,46.84893218]
[1645878546488,22.6322,90.417,90.354,46.84893218]
[1645878551998,16.6076,90.41,90.354,46.84893218]
[1645878557300,24.1828,90.429,90.354,46.84893218]
[1645878557501,24.1828,90.429,90.356,2.74603851]
[1645878557899,24.1828,90.429,90.357,2.86292427]
[1645878558401,24.5916,90.448,90.357,2.86292427]
[1645878558600,16.6022,90.44,90.36,16.6022]
[1645878558802,16.6022,90.44,90.361,2.61224534]
[1645878559702,24.5916,90.448,90.37,16.6005]
[1645878559902,24.5916,90.448,90.371,2.82824004]
[1645878560501,24.5916,90.448,90.373,3.06659504]
[1645878560804,0.25,90.447,90.373,3.06659504]
[1645878561802,24.5916,90.448,90.373,3.06659504]
[1645878562903,16.6022,90.44,90.372,24.0232]
[1645878563103,1.8094394,90.439,90.372,24.0232]
[1645878563302,4.424,90.438,90.372,24.0232]
[1645878563702,8.12718483,90.437,90.372,24.0232]
[1645878563904,4.424,90.436,90.372,24.0232]
[1645878564203,12.55118483,90.436,90.372,24.0232]
[1645878564402,2.73260412,90.435,90.372,24.0232]
[1645878564606,16.6061,90.42,90.372,24.0232]
[1645878564804,23.9161,90.42,90.372,24.0232]
[1645878565304,66.23,90.417,90.31,15.96]
[1645878565505,66.23,90.411,90.322,24.0478]
[1645878565706,66.23,90.405,90.322,24.0478]
[1645878565903,66.23,90.391,90.311,22.7644]
[1645878566107,1.37101134,90.388,90.312,44.83922416]
[1645878566303,4.426,90.387,90.312,44.83922416]
[1645878566507,4.426,90.399,90.313,21.5577554]
[1645878566805,3.62782438,90.41,90.314,2.51483645]
[1645878566806,23.5113,90.398,90.314,2.51483645]
[1645878567003,23.5113,90.398,90.32,16.6097]
[1645878567203,4.426,90.397,90.32,16.6097]
[1645878567406,23.5113,90.398,90.32,16.6097]
[1645878567605,66.23,90.397,90.313,46.3028554]
[1645878567805,5.80691684,90.396,90.313,46.3028554]
[1645878568006,23.5113,90.398,90.313,46.3028554]
[1645878568408,16.6114,90.39,90.313,46.3028554]
[1645878568610,66.23,90.387,90.313,24.7451]
[1645878568808,66.23,90.377,90.269,2.56210768]
[1645878569009,66.23,90.369,90.269,49.98930768]
[1645878569210,5.8539274,90.368,90.269,49.98930768]
[1645878569411,1.71908698,90.366,90.269,49.98930768]
[1645878569810,1.81996466,90.363,90.27,51.47572693]
[1645878570511,1.81996466,90.363,90.28,16.6173]
[1645878570512,16.618,90.36,90.28,16.6173]
[1645878571013,16.618,90.36,90.281,24.8505]
[1645878572633,16.618,90.36,90.282,2.76200759]
[1645878573637,16.618,90.36,90.281,24.8505]
[1645878573638,66.23,90.359,90.281,24.8505]
[1645878573842,16.6219,90.34,90.281,24.8505]
[1645878574140,23.9519,90.34,90.27,51.47572693]
[1645878574338,23.9519,90.34,90.27,75.65052693]
[1645878574837,2.73260412,90.358,90.27,94.91187302]
[1645878575037,4.428,90.357,90.27,94.91187302]
[1645878575837,4.428,90.357,90.27,92.26952693]
[1645878576037,66.23,90.349,90.27,75.65052693]
[1645878576837,4.428,90.357,90.271,2.63988416]
[1645878577537,16.6211,90.34,90.271,2.63988416]
[1645878580842,16.6211,90.34,90.27,75.65052693]
[1645878581045,16.6239,90.32,90.27,75.65052693]
[1645878581341,24.4539,90.32,90.27,75.65052693]
[1645878582347,22.5387,90.338,90.271,2.307039]
[1645878585844,4.429,90.368,90.271,2.307039]
[1645878585845,4.429,90.368,90.28,16.6173]
[1645878586145,4.428,90.389,90.282,110.1]
[1645878586344,11.551949,90.428,90.285,3.08154529]
[1645878586345,52.3315,90.418,90.285,3.08154529]
[1645878586545,1.81457545,90.417,90.286,4.426]
[1645878586748,68.04457545,90.417,90.302,110.1]
[1645878586948,16.6083,90.41,90.303,51.4611]
[1645878587144,16.6083,90.41,90.32,16.6082]
[1645878587344,4.426,90.409,90.321,23.6576]
[1645878587544,0.25,90.408,90.321,23.6576]
[1645878587744,4.426,90.407,90.321,23.6576]
[1645878587944,22.6835,90.406,90.321,23.6576]
[1645878588143,4.426,90.405,90.321,23.6576]
[1645878589144,22.6835,90.406,90.33,16.6076]
[1645878589448,0.25,90.405,90.331,51.61201913]
[1645878589844,0.25,90.405,90.332,24.6545]
[1645878594350,66.48,90.405,90.332,24.6545]
[1645878594556,1.87436926,90.404,90.332,24.6545]
[1645878595653,0.25,90.405,90.332,24.6545]
[1645878595853,0.25,90.405,90.34,16.6061]
[1645878596052,4.426,90.437,90.34,16.6061]
[1645878596252,4.425,90.438,90.341,2.4260461]
[1645878596653,70.655,90.448,90.34,15.96]
[1645878596853,66.23,90.445,90.34,15.96]
[1645878597055,4.425,90.444,90.341,2.62990482]
[1645878597254,4.425,90.444,90.341,110.1]
[1645878597554,0.25,90.417,90.35,16.6034]
[1645878597754,0.25,90.417,90.342,2.72843001]
[1645878597755,0.25,90.417,90.351,24.9464]
[1645878597954,66.23,90.439,90.351,24.9464]
[1645878598153,66.23,90.437,90.351,24.9464]
[1645878598355,66.23,90.435,90.351,24.9464]
[1645878598554,1.65792404,90.434,90.351,24.9464]
[1645878599055,16.6046,90.43,90.351,24.9464]
[1645878599254,0.25,90.429,90.351,24.9464]
[1645878602459,4.425,90.428,90.351,24.9464]
[1645878602758,16.6065,90.42,90.351,24.9464]
[1645878602958,1.81186379,90.418,90.334,23.1807]
[1645878603158,4.425,90.417,90.335,22.9495]
[1645878603358,66.23,90.416,90.335,22.9495]
[1645878603558,66.23,90.41,90.335,22.9495]
[1645878603761,66.23,90.408,90.335,22.9495]
[1645878603958,66.23,90.406,90.335,22.9495]
[1645878604162,66.23,90.404,90.303,2.65655059]
[1645878604360,66.23,90.402,90.304,47.3476]
[1645878604560,1.81091693,90.401,90.304,47.3476]
[1645878604961,4.54346778,90.401,90.304,47.3476]
[1645878605161,2.73255085,90.4,90.304,47.3476]
[1645878605582,66.23,90.399,90.31,16.6109]
[1645878605762,1.77452096,90.398,90.31,16.6109]
[1645878605962,4.426,90.397,90.31,16.6109]
[1645878606462,66.23,90.414,90.311,110.1]
[1645878606463,2.73255085,90.41,90.311,110.1]
[1645878606662,2.73255085,90.41,90.332,24.3155]
[1645878607462,19.34265085,90.41,90.332,24.3155]
[1645878609166,68.96255085,90.409,90.32,16.6096]
[1645878609365,66.23,90.389,90.304,23.8312]
[1645878609565,1.67530423,90.388,90.305,23.9503]
[1645878609965,2.73255085,90.389,90.306,2.91585019]
[1645878610164,16.6135,90.39,90.306,2.91585019]
[1645878611568,16.6135,90.39,90.31,16.6115]
[1645878611768,2.73255085,90.389,90.31,16.6115]
[1645878612168,16.6135,90.39,90.31,16.6115]
[1645878615492,16.6135,90.39,90.311,2.78945215]
[1645878615892,16.6135,90.39,90.31,16.6115]
[1645878616095,66.23,90.389,90.31,16.6115]
[1645878616293,110.1,90.388,90.305,28.3763]
[1645878616497,16.6157,90.37,90.305,23.9503]
[1645878617099,2.73255085,90.369,90.305,23.9503]
[1645878617393,16.6172,90.36,90.306,48.24905668]
[1645878620197,16.6172,90.36,90.272,24.6861]
[1645878620395,24.0657,90.359,90.273,2.38138168]
[1645878620595,16.6192,90.35,90.273,2.38138168]
[1645878621198,16.6192,90.35,90.274,60.36691273]
[1645878622898,16.6192,90.35,90.275,4.429]
[1645878624099,24.0657,90.359,90.28,16.6173]
[1645878624304,24.0657,90.359,90.281,4.428]
[1645878624498,24.0657,90.359,90.281,7.1072015]
[1645878624701,24.0657,90.359,90.281,2.6792015]
[1645878625800,0.25,90.358,90.281,2.6792015]
[1645878631307,16.6191,90.35,90.281,2.6792015]
[1645878634312,66.23,90.349,90.274,60.36691273]
[1645878634514,16.6224,90.34,90.274,60.36691273]
[1645878634710,1.51436752,90.338,90.25,4.429]
[1645878634910,110.1,90.336,90.241,24.6211]
[1645878635111,5.41,90.34,90.241,24.6211]
[1645878635112,110.1,90.334,90.241,24.6211]
[1645878635310,66.23,90.329,90.241,24.6211]
[1645878635617,66.23,90.315,90.241,24.6211]
[1645878635810,4.43,90.314,90.242,46.64011481]
[1645878636012,23.5151,90.329,90.243,2.92016082]
[1645878636213,23.5151,90.356,90.25,15.96]
[1645878636410,23.5151,90.356,90.27,16.618]
[1645878636612,6.02889536,90.355,90.272,47.95199918]
[1645878636813,66.23,90.369,90.272,47.95199918]
[1645878637011,66.23,90.369,90.273,2.72450652]
[1645878637211,66.23,90.367,90.273,5.58743079]
[1645878637411,66.23,90.367,90.274,2.86292427]
[1645878637613,16.6189,90.36,90.274,2.86292427]
[1645878637811,23.8605,90.356,90.273,2.72450652]
[1645878638012,0.25,90.355,90.273,2.72450652]
[1645878638612,66.23,90.349,90.272,47.95199918]
[1645878639011,1.38515901,90.348,90.272,47.95199918]
[1645878639212,66.23,90.349,90.272,47.95199918]
[1645878639714,66.23,90.347,90.272,47.95199918]
[1645878639911,66.23,90.345,90.272,47.95199918]
[1645878640115,66.23,90.343,90.272,47.95199918]
[1645878640315,66.23,90.341,90.272,47.95199918]
[1645878640515,16.6209,90.34,90.272,47.95199918]
[1645878641816,16.6209,90.34,90.273,2.60788332]
[1645878645420,0.25,90.355,90.28,16.6171]
[1645878645720,0.25,90.355,90.281,2.77687078]
[1645878646221,0.25,90.355,90.282,23.2109]
[1645878646420,0.25,90.355,90.283,2.31141259]
[1645878648323,0.25,90.355,90.29,16.6152]
[1645878648525,0.25,90.355,90.291,2.73016204]
[1645878648822,16.6148,90.38,90.292,2.32149939]
[1645878649421,24.366,90.379,90.293,24.8777]
[1645878649621,24.366,90.379,90.294,2.44340992]
[1645878649824,24.366,90.379,90.3,16.612]
[1645878650022,24.366,90.379,90.302,59.42527372]
[1645878650222,0.25,90.378,90.302,59.42527372]
[1645878650423,0.25,90.378,90.303,2.52092498]
[1645878650623,23.2082,90.398,90.304,24.5765]
[1645878650824,23.2082,90.398,90.305,3.12143669]
[1645878651026,4.426,90.397,90.311,2.77608858]
[1645878651228,4.426,90.397,90.311,110.1]
[1645878651427,23.2082,90.398,90.32,16.6085]
[1645878651623,24.7212,90.404,90.321,134.0661]
[1645878651826,2.73878821,90.426,90.322,2.93556919]
[1645878652024,2.73878821,90.426,90.324,110.1]
[1645878652225,6.92631867,90.425,90.325,2.31609951]
[1645878652423,6.92631867,90.425,90.332,46.77707433]
[1645878652624,24.3639,90.424,90.333,23.9661]
[1645878652825,4.425,90.438,90.341,110.1]
[1645878653027,22.7173,90.439,90.351,110.1]
[1645878653224,22.7173,90.439,90.36,15.96]
[1645878653424,22.7173,90.439,90.362,50.52646802]
[1645878653626,28.32330934,90.463,90.364,2.32073044]
[1645878653827,4.424,90.462,90.366,2.71536361]
[1645878654025,7.16278821,90.462,90.366,2.71536361]
[1645878654346,9.66619422,90.461,90.366,2.71536361]
[1645878654525,16.6,90.46,90.37,16.599]
[1645878654825,19.33878821,90.46,90.37,16.599]
[1645878655026,9.91619422,90.459,90.37,16.599]
[1645878655427,6.92740601,90.458,90.371,2.7019154]
[1645878655626,4.424,90.457,90.38,16.5985]
[1645878655827,9.66619422,90.458,90.382,2.50442009]
[1645878656232,2.73878821,90.458,90.383,2.40701379]
[1645878656430,22.5165,90.463,90.383,2.40701379]
[1645878656927,4.423,90.493,90.39,16.5968]
[1645878657128,2.73878821,90.497,90.392,110.1]
[1645878657328,2.73878821,90.497,90.393,2.57996]
[1645878657627,6.92166752,90.496,90.393,2.57996]
[1645878657827,6.92166752,90.496,90.395,112.6838021]
[1645878658027,2.73878821,90.495,90.396,2.41401545]
[1645878658227,2.73878821,90.495,90.401,110.1]
[1645878658428,2.73878821,90.495,90.42,16.5914]
[1645878658628,2.73878821,90.495,90.401,115.58]
[1645878658629,2.73878821,90.495,90.422,56.00862345]
[1645878658829,2.73878821,90.495,90.423,2.52072055]
[1645878659030,22.5994,90.505,90.423,2.52072055]
[1645878659229,2.73878821,90.507,90.423,2.52072055]
[1645878659430,2.73878821,90.531,90.43,16.5887]
[1645878659632,4.421,90.538,90.44,15.96]
[1645878659935,6.91767727,90.53,90.442,3.00566968]
[1645878660330,6.91767727,90.537,90.442,3.00566968]
[1645878660529,6.91767727,90.537,90.461,54.03085617]
[1645878660733,14.07646548,90.549,90.461,54.03085617]
[1645878660930,14.07646548,90.549,90.462,23.3237]
[1645878661129,9.65646548,90.548,90.463,3.08853341]
[1645878661330,4.418,90.547,90.463,3.08853341]
[1645878661533,11.33567727,90.547,90.463,3.08853341]
[1645878661738,16.5842,90.54,90.462,23.3237]
[1645878661933,4.418,90.539,90.462,23.3237]
[1645878662230,16.5842,90.54,90.462,23.3237]
[1645878662431,6.91767727,90.538,90.462,23.3237]
[1645878662632,0.25,90.537,90.462,23.3237]
[1645878663231,6.91767727,90.536,90.462,23.3237]
[1645878664332,6.91767727,90.536,90.463,2.29205839]
[1645878664732,0.25,90.537,90.463,2.29205839]
[1645878665532,0.25,90.537,90.47,16.5821]
[1645878665935,12.35817515,90.557,90.471,2.68381724]
[1645878666332,2.74569034,90.577,90.471,2.68381724]
[1645878666533,2.74569034,90.577,90.472,2.86292427]
[1645878666738,6.87765407,90.576,90.491,2.62827532]
[1645878666934,6.87765407,90.576,90.49,16.5768]
[1645878666935,31.39698879,90.575,90.493,49.81713008]
[1645878667135,1.39041184,90.574,90.493,49.81713008]
[1645878667334,4.13610218,90.574,90.493,49.81713008]
[1645878667535,11.29565407,90.573,90.493,49.81713008]
[1645878667838,2.06266767,90.572,90.493,49.81713008]
[1645878668138,6.09281287,90.571,90.493,49.81713008]
[1645878668337,8.83850321,90.571,90.493,49.81713008]
[1645878668537,19.32419034,90.57,90.493,49.81713008]
[1645878668737,1.48791417,90.569,90.493,49.81713008]
[1645878668937,4.23360451,90.569,90.493,49.81713008]
[1645878669139,2.74569034,90.568,90.493,49.81713008]
[1645878669555,4.418,90.567,90.493,49.81713008]
[1645878669853,2.74569034,90.566,90.493,49.81713008]
[1645878670055,4.418,90.565,90.493,49.81713008]
[1645878670455,16.5809,90.56,90.493,49.81713008]
[1645878670857,2.74569034,90.559,90.493,49.81713008]
[1645878671259,4.58932984,90.559,90.493,49.81713008]
[1645878671656,16.5821,90.55,90.493,49.81713008]
[1645878672757,2.74569034,90.558,90.493,49.81713008]
[1645878673760,2.74569034,90.568,90.493,49.81713008]